bitfinex/quotes_SOLUSD_20240613
["timestamp","ask_amount","ask_price","bid_price","bid_amount"]
[1718299789106,10.0503,147.26,147.19,16.1985]
[1718299789298,10.0503,147.26,147.2,2.5134]
[1718299789299,7.75,147.25,147.2,2.5134]
[1718299789591,2.5131,147.23,147.2,2.5134]
[1718299789798,2.513,147.24,147.2,2.5134]
[1718299789993,2.513,147.24,147.21,2.5134]
[1718299790394,10.2628,147.25,147.22,2.5132]
[1718299790592,10.2628,147.25,147.21,2.5132]
[1718299791616,10.2628,147.25,147.22,2.5131]
[1718299793118,5.0244,147.28,147.2,7.75]
[1718299793411,7.75,147.26,147.21,5.0268]
[1718299793700,7.75,147.26,147.24,2.5128]
[1718299794617,7.75,147.26,147.21,7.75]
[1718299794904,7.75,147.26,147.22,2.5132]
[1718299794905,10.2628,147.25,147.22,2.5132]
[1718299795278,7.75,147.25,147.23,2.513]
[1718299796408,7.75,147.26,147.23,2.513]
[1718299797088,10.2625,147.26,147.23,2.513]
[1718299798310,2.5125,147.26,147.23,2.513]
[1718299798516,10.2625,147.26,147.23,2.513]
[1718299800217,7.75,147.26,147.24,2.5128]
[1718299801090,2.5127,147.25,147.22,2.5131]
[1718299801290,7.75,147.24,147.2,2.5135]
[1718299801516,7.75,147.23,147.21,2.5134]
[1718299801730,7.75,147.28,147.22,5.0264]
[1718299801731,2.5124,147.27,147.22,5.0264]
[1718299802013,2.5123,147.28,147.25,2.5127]
[1718299802193,7.75,147.28,147.26,2.5124]
[1718299802396,2.5119,147.3,147.25,5.0254]
[1718299802597,7.75,147.29,147.26,2.5124]
[1718299802818,10.2619,147.3,147.26,2.5124]
[1718299803219,5.023,147.33,147.28,2.5121]
[1718299803427,7.75,147.32,147.26,7.5376]
[1718299803646,10.2616,147.32,147.26,22.6126]
[1718299803806,10.2616,147.32,147.26,30.3626]
[1718299804003,10.0446,147.35,147.31,2.5116]
[1718299804004,2.5111,147.35,147.31,2.5116]
[1718299804304,2.5111,147.35,147.29,12.774]
[1718299804305,7.75,147.36,147.33,2.5113]
[1718299804612,17.5727,147.39,147.32,2.5114]
[1718299804613,7.531,147.39,147.32,2.5114]
[1718299804825,2.5112,147.34,147.3,2.5117]
[1718299805009,7.75,147.35,147.31,2.5117]
[1718299805010,10.2611,147.35,147.31,2.5117]
[1718299805626,10.2611,147.35,147.32,2.5115]
[1718299805815,2.5109,147.36,147.32,2.5115]
[1718299806113,10.2611,147.35,147.31,2.5116]
[1718299806312,2.5113,147.34,147.29,7.75]
[1718299806515,7.75,147.35,147.29,15.286]
[1718299806722,7.75,147.36,147.34,2.5111]
[1718299807099,7.75,147.36,147.35,2.511]
[1718299807295,22.5095,147.4,147.36,2.5108]
[1718299807505,7.75,147.38,147.36,2.5108]
[1718299807712,7.75,147.39,147.36,2.5108]
[1718299807901,10.2602,147.4,147.36,2.5108]
[1718299808310,7.75,147.4,147.37,2.5106]
[1718299808527,10.2601,147.41,147.37,2.5106]
[1718299809019,10.2598,147.42,147.38,2.5105]
[1718299809240,15.3178,147.44,147.38,2.5105]
[1718299809241,5.0183,147.46,147.38,7.75]
[1718299809416,10.2595,147.44,147.4,2.51]
[1718299809799,2.5097,147.43,147.39,2.5103]
[1718299810036,2.5097,147.43,147.34,5.0222]
[1718299810037,2.5102,147.4,147.34,5.0222]
[1718299810222,10.2602,147.4,147.36,2.5107]
[1718299810400,10.2602,147.4,147.35,20.0]
[1718299810401,7.75,147.4,147.37,2.5106]
[1718299810723,0.17,147.4,147.31,23.0084]
[1718299810926,7.75,147.38,147.35,2.5109]
[1718299811218,7.75,147.38,147.34,2.5111]
[1718299811219,10.2606,147.38,147.34,2.5111]
[1718299811421,7.75,147.38,147.35,2.5109]
[1718299811600,47.6802,147.4,147.36,2.5108]
[1718299811803,7.75,147.39,147.36,2.5108]
[1718299812709,47.51,147.41,147.37,2.5106]
[1718299812897,55.26,147.41,147.35,12.7719]
[1718299813310,7.75,147.41,147.38,2.5103]
[1718299813517,2.5099,147.42,147.36,12.7715]
[1718299813708,2.5097,147.43,147.4,2.5101]
[1718299813910,10.2597,147.43,147.39,2.5102]
[1718299814128,2.5098,147.42,147.39,2.5102]
[1718299814305,10.2597,147.43,147.4,2.5101]
[1718299814527,2.5095,147.44,147.38,12.7709]
[1718299814718,2.5095,147.44,147.4,2.51]
[1718299814719,10.2595,147.44,147.4,2.51]
[1718299816128,2.5095,147.44,147.4,2.51]
[1718299816818,2.5096,147.43,147.4,2.51]
[1718299817014,2.5098,147.42,147.39,2.5102]
[1718299817447,10.2597,147.43,147.39,2.5102]
[1718299817732,2.5098,147.42,147.39,2.5102]
[1718299819119,10.2597,147.43,147.4,2.5101]
[1718299819321,10.2597,147.43,147.39,2.5102]
[1718299819629,7.75,147.43,147.4,2.5101]
[1718299820015,2.6795,147.44,147.41,2.5099]
[1718299820226,3.0194,147.45,147.39,12.5513]
[1718299820428,3.0194,147.45,147.41,2.5098]
[1718299820732,11.4997,147.47,147.38,30.8741]
[1718299820733,255.6085,147.5,147.44,12.7688]
[1718299820937,2.5084,147.51,147.47,2.5088]
[1718299821115,7.75,147.49,147.47,2.5088]
[1718299821621,7.75,147.49,147.46,2.509]
[1718299821809,7.75,147.49,147.43,22.5863]
[1718299821810,7.75,147.48,147.45,2.5093]
[1718299822011,10.2589,147.48,147.42,7.5295]
[1718299822240,10.2589,147.48,147.45,2.5093]
[1718299822809,2.5089,147.48,147.45,2.5093]
[1718299823012,2.5088,147.48,147.45,2.5093]
[1718299823427,47.5087,147.49,147.45,2.5093]
[1718299824030,47.5087,147.49,147.46,2.5091]
[1718299824234,2.5087,147.49,147.46,2.5091]
[1718299825026,45.0,147.5,147.46,2.5091]
[1718299825228,45.0,147.5,147.4,7.5304]
[1718299825229,13.0534,147.49,147.4,7.5304]
[1718299825434,47.5089,147.48,147.45,2.5092]
[1718299825619,45.0,147.48,147.45,2.5092]
[1718299825818,47.5088,147.48,147.45,2.5092]
[1718299826456,2.8487,147.49,147.45,2.5092]
[1718299826636,2.5087,147.49,147.45,2.5092]
[1718299827224,2.5087,147.49,147.43,2.5095]
[1718299827225,2.5091,147.47,147.43,2.5095]
[1718299827557,2.5091,147.47,147.41,12.5497]
[1718299827558,47.6788,147.48,147.42,12.549]
[1718299827849,2.5088,147.48,147.45,2.5092]
[1718299828018,2.5087,147.49,147.45,2.5092]
[1718299828219,22.5752,147.51,147.44,2.5094]
[1718299828220,53.2054,147.5,147.44,2.5094]
[1718299828649,2.5089,147.48,147.44,2.5094]
[1718299828821,2.5089,147.47,147.44,2.5094]
[1718299829843,47.5089,147.48,147.44,2.5094]
[1718299830146,45.0,147.48,147.45,2.5092]
[1718299830645,45.0,147.48,147.44,2.5094]
[1718299830832,45.0,147.48,147.45,2.5092]
[1718299831028,2.5092,147.46,147.42,2.5096]
[1718299831232,2.509,147.47,147.43,2.5095]
[1718299831959,2.5094,147.45,147.41,2.5098]
[1718299832257,2.5094,147.45,147.39,2.5103]
[1718299832258,2.5098,147.42,147.39,2.5103]
[1718299832542,2.5098,147.42,147.38,21.9602]
[1718299832543,2.5097,147.43,147.4,2.5101]
[1718299832730,2.5095,147.44,147.4,2.5101]
[1718299833179,2.5096,147.43,147.4,2.5101]
[1718299833475,2.5094,147.44,147.38,26.9811]
[1718299833685,2.5094,147.44,147.4,2.5101]
[1718299834277,50.3587,147.45,147.39,2.5102]
[1718299834583,2.5097,147.43,147.39,2.5102]
[1718299835476,2.8495,147.44,147.4,2.5101]
[1718299836395,45.0,147.45,147.38,15.5927]
[1718299836581,15.059,147.47,147.38,15.5927]
[1718299836582,47.5091,147.46,147.42,2.5096]
[1718299837923,2.5091,147.46,147.43,2.5096]
[1718299838110,47.849,147.47,147.43,2.5096]
[1718299838820,2.5091,147.46,147.43,2.5096]
[1718299839226,47.849,147.47,147.43,2.5096]
[1718299839519,0.34,147.46,147.39,15.0617]
[1718299839826,0.68,147.46,147.39,15.0617]
[1718299839997,2.5095,147.44,147.4,2.51]
[1718299840194,45.0,147.45,147.4,2.51]
[1718299840429,2.5101,147.41,147.38,15.5927]
[1718299840638,2.5099,147.42,147.38,18.103]
[1718299841220,2.5099,147.42,147.39,2.5103]
[1718299841408,5.189,147.44,147.39,2.5103]
[1718299841607,2.5097,147.43,147.4,2.5101]
[1718299842104,47.5094,147.45,147.41,2.5099]
[1718299842319,47.5094,147.45,147.42,2.5098]
[1718299842611,48.1892,147.46,147.42,2.5098]
[1718299842814,10.2393,147.45,147.42,2.5098]
[1718299843110,45.68,147.46,147.41,2.5099]
[1718299843111,10.2395,147.44,147.41,2.5099]
[1718299843427,7.73,147.44,147.41,2.5099]
[1718299843624,2.5097,147.43,147.4,2.5101]
[1718299843801,10.2397,147.43,147.4,2.5101]
[1718299844118,7.73,147.43,147.4,2.5101]
[1718299844647,7.73,147.43,147.38,18.103]
[1718299844648,2.5099,147.42,147.38,18.103]
[1718299844925,7.73,147.42,147.39,2.5103]
[1718299845127,10.2398,147.42,147.39,2.5103]
[1718299845302,10.2398,147.42,147.38,18.1031]
[1718299846925,2.5098,147.42,147.38,18.1031]
[1718299847128,2.5098,147.42,147.39,2.5103]
[1718299847327,0.17,147.42,147.35,5.0217]
[1718299847532,2.51,147.41,147.37,2.5105]
[1718299847702,0.17,147.4,147.37,2.5105]
[1718299848031,25.3259,147.45,147.34,22.6632]
[1718299848231,78.0576,147.44,147.38,2.5104]
[1718299848417,2.5098,147.42,147.36,5.0217]
[1718299848598,47.5098,147.42,147.39,2.5103]
[1718299848798,2.5098,147.42,147.39,2.5103]
[1718299849019,2.5098,147.42,147.38,2.5104]
[1718299849220,2.5097,147.43,147.39,2.5102]
[1718299849444,70.5289,147.44,147.4,2.5101]
[1718299849445,48.0196,147.44,147.4,2.5101]
[1718299849611,2.5096,147.43,147.4,2.5101]
[1718299849920,2.5096,147.43,147.39,2.5102]
[1718299851422,2.5098,147.42,147.38,2.5104]
[1718299852331,2.5101,147.4,147.37,2.5105]
[1718299852519,2.51,147.41,147.37,2.5105]
[1718299852832,2.5102,147.4,147.37,2.5105]
[1718299853609,2.5103,147.39,147.34,22.6632]
[1718299853836,2.5103,147.39,147.35,2.5108]
[1718299854207,0.17,147.4,147.36,2.5108]
[1718299854208,2.6802,147.4,147.36,2.5108]
[1718299854412,45.0,147.41,147.38,2.5104]
[1718299854711,47.6799,147.42,147.38,2.5104]
[1718299855108,2.51,147.41,147.37,2.5106]
[1718299855325,45.0,147.41,147.37,2.5106]
[1718299855515,2.5102,147.4,147.37,2.5106]
[1718299855724,47.5101,147.41,147.37,2.5106]
[1718299856034,47.5101,147.41,147.38,2.5105]
[1718299856243,2.5101,147.41,147.38,2.5105]
[1718299856734,2.5101,147.4,147.35,12.555]
[1718299857034,50.5297,147.42,147.35,12.555]
[1718299857035,45.51,147.42,147.38,2.5105]
[1718299857243,45.51,147.42,147.36,5.0216]
[1718299857244,47.5097,147.43,147.39,2.5102]
[1718299857525,2.5096,147.43,147.39,2.5102]
[1718299857830,2.5098,147.42,147.39,2.5102]
[1718299858333,2.51,147.41,147.38,2.5104]
[1718299858906,12.5504,147.41,147.34,16.5715]
[1718299859235,2.5104,147.39,147.34,21.5937]
[1718299859816,2.5104,147.39,147.35,2.5109]
[1718299860016,2.5104,147.39,147.36,2.5108]
[1718299860226,47.8502,147.4,147.36,2.5108]
[1718299860427,2.5103,147.39,147.35,2.5109]
[1718299860939,2.5103,147.39,147.36,2.5108]
[1718299861412,47.8502,147.4,147.36,2.5108]
[1718299861829,47.8502,147.4,147.37,2.5106]
[1718299862023,45.0,147.39,147.37,2.5106]
[1718299862336,2.8502,147.4,147.37,2.5106]
[1718299862838,2.5103,147.39,147.36,2.5107]
[1718299863542,2.5103,147.39,147.3,6.643]
[1718299863543,5.0218,147.36,147.3,18.491]
[1718299863739,0.17,147.37,147.3,21.0029]
[1718299864056,2.5113,147.34,147.3,2.5118]
[1718299864212,5.0228,147.33,147.27,2.5123]
[1718299864409,5.0228,147.33,147.26,15.6381]
[1718299864410,2.5116,147.32,147.28,2.5121]
[1718299864630,2.5114,147.33,147.28,2.5121]
[1718299864917,2.5114,147.33,147.29,2.512]
[1718299865313,45.0,147.34,147.29,2.512]
[1718299865549,0.17,147.33,147.28,2.5121]
[1718299865836,0.51,147.33,147.28,2.5121]
[1718299866226,0.17,147.32,147.27,2.5122]
[1718299866423,2.8517,147.32,147.27,2.5122]
[1718299866742,2.5117,147.31,147.27,2.5122]
[1718299866918,0.17,147.3,147.25,2.5125]
[1718299867113,0.17,147.3,147.24,2.5128]
[1718299867427,2.5121,147.29,147.25,2.5126]
[1718299867812,0.34,147.3,147.22,30.3576]
[1718299868018,0.17,147.3,147.25,5.0254]
[1718299868220,45.34,147.31,147.25,10.0508]
[1718299868436,45.34,147.31,147.26,2.5124]
[1718299868437,2.6819,147.3,147.26,2.5124]
[1718299868757,2.5122,147.28,147.24,2.5127]
[1718299869236,0.34,147.3,147.23,2.5129]
[1718299869237,5.3638,147.3,147.23,2.5129]
[1718299869448,5.3638,147.3,147.22,16.3735]
[1718299869449,17.5856,147.28,147.22,16.3735]
[1718299869622,48.0224,147.27,147.22,18.8866]
[1718299869821,2.5125,147.26,147.21,2.5133]
[1718299870137,47.8525,147.26,147.21,2.5133]
[1718299870649,47.6827,147.25,147.2,2.5135]
[1718299870831,2.6827,147.25,147.2,2.5135]
[1718299871263,0.17,147.23,147.12,15.37964115]
[1718299871423,2.5135,147.21,147.16,2.5142]
[1718299871742,2.5135,147.21,147.14,5.0291]
[1718299871743,2.5138,147.19,147.14,2.5145]
[1718299871917,0.17,147.18,147.13,18.7479]
[1718299872337,0.17,147.17,147.13,2.5146]
[1718299872532,0.17,147.18,147.09,15.3093]
[1718299872739,0.17,147.19,147.09,15.3093]
[1718299872946,0.17,147.19,147.14,2.5145]
[1718299872947,48.0238,147.19,147.14,2.5145]
[1718299873254,0.17,147.18,147.13,2.5147]
[1718299873546,0.17,147.18,147.1,17.6065]
[1718299873547,0.17,147.16,147.12,2.5148]
[1718299873737,0.51,147.16,147.12,2.5148]
[1718299874436,45.0,147.19,147.11,10.0603]
[1718299874734,0.51,147.18,147.12,2.5148]
[1718299874940,2.6841,147.17,147.12,2.5148]
[1718299875246,2.5144,147.15,147.1,2.5152]
[1718299875455,2.8543,147.16,147.11,2.5151]
[1718299875743,0.34,147.15,147.11,2.5151]
[1718299876428,0.34,147.15,147.07,10.0632]
[1718299876637,2.8547,147.14,147.09,2.5154]
[1718299876838,45.17,147.15,147.05,15.2822]
[1718299877037,45.0,147.14,147.08,7.5469]
[1718299877231,0.17,147.13,147.05,15.2822]
[1718299877532,2.6846,147.14,147.09,2.5153]
[1718299877729,0.17,147.14,147.1,2.5152]
[1718299877964,0.34,147.14,147.1,2.5152]
[1718299878152,2.8546,147.14,147.09,2.5154]
[1718299879045,2.8546,147.14,147.06,17.6116]
[1718299879046,2.5144,147.16,147.08,5.031]
[1718299879229,2.5143,147.16,147.08,17.6092]
[1718299879550,2.5145,147.15,147.1,2.5151]
[1718299879749,2.5143,147.16,147.11,2.5151]
[1718299879923,2.5144,147.15,147.1,2.5152]
[1718299880124,64.39459826,147.2,147.08,17.6091]
[1718299880336,2.514,147.18,147.13,2.5146]
[1718299880740,269.0499,147.23,147.14,5.0291]
[1718299881045,6.2424,147.25,147.15,20.34]
[1718299881254,15.9499,147.27,147.15,20.34]
[1718299881550,6.2424,147.28,147.16,0.17]
[1718299881848,6.2424,147.32,147.18,23.38]
[1718299882051,269.0499,147.35,147.22,0.17]
[1718299882052,253.1,147.35,147.22,0.17]
[1718299882231,2.5111,147.35,147.27,5.0247]
[1718299882436,2.5109,147.36,147.3,2.5117]
[1718299882622,2.5109,147.36,147.27,5.0247]
[1718299882623,5.0219,147.36,147.27,2.5122]
[1718299882824,2.5114,147.33,147.25,20.0]
[1718299883034,23.01317839,147.39,147.25,20.0]
[1718299883235,23.01317839,147.39,147.3,5.0235]
[1718299883434,23.01317839,147.39,147.25,20.0]
[1718299883435,253.1,147.4,147.28,10.0483]
[1718299883647,253.1,147.4,147.3,2.5117]
[1718299883648,5.0206,147.39,147.3,2.5117]
[1718299883849,260.6308,147.4,147.29,20.0]
[1718299883850,5.0216,147.37,147.29,20.0]
[1718299884025,5.0207,147.39,147.29,20.0]
[1718299884232,253.1,147.4,147.29,0.17]
[1718299884531,2.5101,147.41,147.31,5.0233]
[1718299884733,2.5099,147.42,147.33,5.0227]
[1718299884936,2.5099,147.42,147.36,2.5108]
[1718299885341,7.528,147.45,147.34,2.511]
[1718299885644,2.5103,147.4,147.34,2.511]
[1718299885842,255.6091,147.46,147.35,7.5327]
[1718299886057,2.5093,147.45,147.36,25.0215]
[1718299886261,2.5093,147.45,147.39,2.5102]
[1718299886556,747.5,147.51,147.42,2.5096]
[1718299886557,2.5089,147.47,147.42,2.5096]
[1718299886723,2.5089,147.47,147.41,2.5099]
[1718299887232,2.5091,147.46,147.41,2.5099]
[1718299887444,2.5088,147.48,147.4,0.87415787]
[1718299887651,2.5088,147.48,147.43,2.5096]
[1718299888150,2.5089,147.47,147.42,2.5097]
[1718299888633,2.5089,147.47,147.41,2.5099]
[1718299888954,2.5089,147.47,147.34,5.0222]
[1718299888955,5.0187,147.45,147.34,5.0222]
[1718299889256,0.17,147.43,147.32,21.2067]
[1718299889462,5.02,147.41,147.32,16.1838]
[1718299889634,47.6802,147.4,147.32,16.1838]
[1718299889973,2.6799,147.42,147.33,5.0225]
[1718299890150,0.17,147.42,147.32,16.1838]
[1718299890361,2.5105,147.38,147.33,2.5112]
[1718299890533,0.34,147.41,147.32,16.1838]
[1718299890732,0.17,147.41,147.32,21.2066]
[1718299890929,2.5102,147.4,147.35,2.5109]
[1718299891133,2.68,147.41,147.36,2.5108]
[1718299891946,2.68,147.41,147.32,21.2066]
[1718299891947,3.0198,147.42,147.37,2.5106]
[1718299892736,2.5101,147.4,147.35,2.5109]
[1718299893060,2.5106,147.38,147.33,2.5112]
[1718299893457,2.5104,147.39,147.35,2.5109]
[1718299893766,0.34,147.41,147.36,2.5108]
[1718299895256,2.5103,147.39,147.32,21.2066]
[1718299895473,2.5102,147.4,147.35,2.5108]
[1718299896049,0.34,147.41,147.35,2.5108]
[1718299896357,0.34,147.41,147.33,2.5112]
[1718299896358,2.5106,147.38,147.33,2.5112]
[1718299896754,2.5106,147.38,147.34,2.5111]
[1718299897149,2.5103,147.39,147.34,2.5111]
[1718299897355,2.5103,147.39,147.35,2.5109]
[1718299898441,0.17,147.43,147.32,16.1838]
[1718299898760,2.5099,147.42,147.35,5.022]
[1718299899060,2.5099,147.42,147.38,2.5104]
[1718299899261,2.5098,147.43,147.38,2.5104]
[1718299899473,2.5098,147.43,147.35,2.5108]
[1718299899474,2.5103,147.39,147.35,2.5108]
[1718299899672,2.5104,147.39,147.34,2.511]
[1718299900043,5.02,147.41,147.29,12.5596]
[1718299900044,7.5304,147.41,147.29,12.5596]
[1718299900244,106.4287,147.43,147.29,5.0237]
[1718299900245,10.0414,147.39,147.29,5.0237]
[1718299900451,50.7011,147.38,147.31,2.5116]
[1718299900683,5.0214,147.37,147.3,2.5117]
[1718299900855,2.5112,147.34,147.3,2.5117]
[1718299901178,45.34,147.38,147.33,2.5113]
[1718299901476,0.17,147.37,147.29,5.0241]
[1718299901672,2.5108,147.37,147.32,2.5114]
[1718299901870,20.34,147.38,147.29,2.5118]
[1718299902165,2.5114,147.33,147.29,2.5118]
[1718299902982,2.5112,147.34,147.3,2.5118]
[1718299903155,47.5111,147.35,147.31,2.5117]
[1718299903341,2.5111,147.35,147.31,2.5117]
[1718299904856,2.5109,147.36,147.32,2.5114]
[1718299905956,2.5109,147.36,147.29,12.5601]
[1718299905957,2.511,147.35,147.31,2.5116]
[1718299906156,2.5104,147.39,147.35,2.511]
[1718299906456,0.17,147.4,147.36,2.5107]
[1718299906457,2.5101,147.4,147.36,2.5107]
[1718299906667,2.5104,147.39,147.33,22.6018]
[1718299907177,7.531,147.39,147.31,5.0231]
[1718299907377,2.5106,147.38,147.34,2.5111]
[1718299907761,2.5106,147.38,147.32,5.023]
[1718299907762,2.5104,147.39,147.35,2.5109]
[1718299908179,2.5104,147.39,147.36,2.5108]
[1718299908678,2.5104,147.39,147.35,2.5109]
[1718299908885,2.5105,147.38,147.34,2.511]
[1718299909081,45.0,147.4,147.29,17.5836]
[1718299909264,2.511,147.36,147.32,2.5114]
[1718299909667,2.511,147.36,147.3,25.0237]
[1718299909668,2.511,147.36,147.33,2.5113]
[1718299910060,2.5106,147.38,147.34,2.5111]
[1718299910571,2.6803,147.39,147.35,2.5109]
[1718299910894,6.4287,147.43,147.37,2.5106]
[1718299910895,13.9578,147.43,147.37,2.5106]
[1718299911060,18.9772,147.43,147.37,2.5106]
[1718299911259,2.51,147.41,147.37,2.5106]
[1718299911576,6.4287,147.43,147.3,20.0]
[1718299911782,2.5098,147.42,147.38,2.5104]
[1718299912478,2.51,147.41,147.38,2.5104]
[1718299912870,2.51,147.41,147.37,2.5105]
[1718299914389,2.5102,147.4,147.36,2.5107]
[1718299914685,2.5102,147.4,147.37,2.5106]
[1718299915067,2.5102,147.4,147.36,2.5107]
[1718299916294,5.02,147.41,147.35,2.5109]
[1718299916467,12.5502,147.41,147.35,2.5109]
[1718299916659,2.5104,147.39,147.35,2.5109]
[1718299917790,2.5104,147.39,147.36,2.5108]
[1718299917978,5.02,147.41,147.36,2.5108]
[1718299917979,2.5102,147.4,147.36,2.5108]
[1718299918487,2.5103,147.39,147.36,2.5108]
[1718299918671,2.5103,147.39,147.35,2.5109]
[1718299918868,5.02,147.41,147.35,2.5109]
[1718299919069,5.02,147.41,147.12,1.1793937]
[1718299919070,0.17,147.39,147.3,22.6058]
[1718299919391,2.5108,147.36,147.33,2.5112]
[1718299919790,2.511,147.35,147.32,2.5114]
[1718299920106,2.5109,147.36,147.32,2.5114]
[1718299920591,0.17,147.39,147.33,2.5112]
[1718299920899,2.5108,147.36,147.32,2.5114]
[1718299921269,2.511,147.35,147.31,2.5116]
[1718299921570,45.0,147.36,147.31,2.5116]
[1718299921978,47.5109,147.36,147.32,2.5115]
[1718299922185,2.5109,147.36,147.32,2.5115]
[1718299922897,47.6807,147.37,147.33,2.5113]
[1718299923192,45.17,147.38,147.34,2.511]
[1718299923597,2.5104,147.39,147.35,2.511]
[1718299923779,2.5103,147.39,147.35,2.511]
[1718299923977,268.1572,147.44,147.28,36.2801]
[1718299924178,20.0,147.42,147.32,10.0459]
[1718299924380,5.0204,147.4,147.32,5.0228]
[1718299924576,2.5104,147.39,147.35,2.511]
[1718299924793,2.5105,147.38,147.33,2.5112]
[1718299925003,2.5105,147.38,147.34,2.5111]
[1718299925292,2.5108,147.37,147.33,2.5113]
[1718299927188,2.5106,147.38,147.33,2.5113]
[1718299927997,0.17,147.4,147.35,2.5108]
[1718299928301,48.0203,147.4,147.35,2.5108]
[1718299928501,47.8503,147.4,147.36,2.5108]
[1718299928697,2.6803,147.4,147.35,2.5109]
[1718299929206,2.5103,147.39,147.35,2.5109]
[1718299929500,2.5105,147.38,147.34,2.5111]
[1718299930094,2.5104,147.39,147.34,2.5111]
[1718299930798,2.5105,147.38,147.34,2.5111]
[1718299931003,0.17,147.4,147.32,15.0687]
[1718299931303,2.5104,147.39,147.35,2.5109]
[1718299931814,2.5104,147.39,147.33,15.068]
[1718299931815,2.5104,147.39,147.34,2.511]
[1718299932103,2.5111,147.35,147.28,28.4708]
[1718299932294,47.5109,147.36,147.32,2.5115]
[1718299932673,2.5109,147.36,147.32,2.5115]
[1718299932903,2.5107,147.37,147.33,2.5112]
[1718299933776,47.5105,147.38,147.34,2.5111]
[1718299934100,2.5103,147.39,147.35,2.511]
[1718299934805,16.5189,147.42,147.28,36.2801]
[1718299935005,16.5189,147.42,147.37,2.5106]
[1718299935506,6.4287,147.43,147.38,2.5104]
[1718299935683,8.9385,147.43,147.38,2.5104]
[1718299935880,6.4287,147.43,147.39,2.5103]
[1718299936080,2.5093,147.45,147.4,2.5101]
[1718299936392,2.5093,147.45,147.38,2.5104]
[1718299936393,2.5098,147.42,147.38,2.5104]
[1718299936705,2.5097,147.43,147.38,2.5104]
[1718299936877,2.5097,147.43,147.39,2.5103]
[1718299937278,45.0,147.44,147.37,20.0]
[1718299937279,2.5095,147.44,147.4,2.51]
[1718299937575,15.1477,147.46,147.37,20.0]
[1718299937779,6.3219,147.47,147.42,2.5097]
[1718299937977,8.8309,147.47,147.42,2.5097]
[1718299939706,2.509,147.47,147.43,2.5096]
[1718299940503,2.509,147.47,147.42,2.5097]
[1718299941202,2.5091,147.46,147.41,2.5099]
[1718299941403,2.5091,147.46,147.42,2.5098]
[1718299942596,2.5093,147.45,147.41,2.5099]
[1718299942913,47.5089,147.48,147.41,22.5893]
[1718299943117,2.5089,147.47,147.43,2.5095]
[1718299943298,2.5089,147.48,147.44,2.5094]
[1718299943899,6.5126,147.5,147.37,0.17]
[1718299944215,6.3426,147.5,147.43,5.0192]
[1718299944534,2.5084,147.51,147.46,2.509]
[1718299944688,2.5084,147.51,147.46,2.5091]
[1718299944886,35.3682041,147.53,147.46,2.5091]
[1718299945112,2.5083,147.51,147.47,2.5089]
[1718299945420,2.5084,147.5,147.46,2.509]
[1718299945617,2.5083,147.51,147.46,3.37474672]
[1718299945943,35.3682041,147.53,147.44,20.0]
[1718299945944,7.1824041,147.53,147.44,20.0]
[1718299946223,7.1824041,147.53,147.48,12.5439]